[Event "AUT-ch 2018"]
[Site "Vienna"]
[Date "2018.07.23"]
[Round "3"]
[White "Schnegg, Anna-Lena"]
[Black "Tauber, Andreas"]
[Result "1-0"]
[ECO "A00"]
[WhiteElo "2175"]
[BlackElo "1993"]
[Annotator "ChessBase"]
[PlyCount "79"]
[EventDate "2018.07.22"]
[EventType "swiss"]
[EventCountry "AUT"]
[SourceTitle "playchess.com"]
[Source "ChessBase"]
[SourceQuality "1"]
[TimeControl "40/5400+30:1800+30"]

1. g3 {[%emt 0:00:00]} d5 {[%emt 0:00:40]} 2. f4 {[%emt 0:00:00]} c5 {[%emt 0:02:05]} 3. Nf3 {[%emt 0:00:00]} Nc6 {[%emt 0:00:29]} 4. Bg2 {[%emt 0:00:06]} Nf6 {[%emt 0:01:23]} 5. O-O {[%emt 0:00:59]} Qc7 {[%emt 0:07:18]} 6. d3 {[%emt 0:03:54]} e5 {[%emt 0:09:49]} 7. e4 {[%emt 0:05:59]} Bg4 {[%emt 0:16:24]} 8. exd5 {[%emt 0:07:38]} Nxd5 {[%emt 0:03:03]} 9. Qe1 {[%emt 0:04:32]} Bxf3 {[%emt 0:01:47]} 10. Bxf3 {[%emt 0:00:54]} O-O-O {[%emt 0:02:37]} 11. fxe5 {[%emt 0:14:20]} Qxe5 {[%emt 0:07:56]} 12. Qf2 {[%emt 0:06:02]} f6 {[%emt 0:08:37]} 13. Nc3 {[%emt 0:02:14]} Nde7 {[%emt 0:10:57]} 14. Bg4+ {[%emt 0:15:25]} f5 {[%emt 0:00:30]} 15. Bxf5+ {[%emt 0:00:53]} Nxf5 {[%emt 0:00:38]} 16. Qxf5+ {[%emt 0:00:10]} Qxf5 {[%emt 0:00:08]} 17. Rxf5 {[%emt 0:00:07]} Nd4 {[%emt 0:01:07]} 18. Rf2 {[%emt 0:01:52]} c4 {[%emt 0:04:14]} 19. dxc4 {[%emt 0:02:33]} Bc5 {[%emt 0:00:55]} 20. Kg2 {[%emt 0:00:26]} Rhf8 {[%emt 0:01:10]} 21. Be3 {[%emt 0:07:42]} Rxf2+ {[%emt 0:05:04]} 22. Bxf2 {[%emt 0:00:26]} Nxc2 {[%emt 0:00:36]} 23. Rd1 {[%emt 0:01:14]} Bxf2 {[%emt 0:02:21]} 24. Rxd8+ {[%emt 0:02:53]} Kxd8 {[%emt 0:00:02]} 25. Kxf2 {[%emt 0:00:08]} Kc7 {[%emt 0:00:48]} 26. Ke2 {[%emt 0:01:39]} Nd4+ {[%emt 0:02:49]} 27. Ke3 {[%emt 0:00:51]} Ne6 {[%emt 0:00:48]} 28. Ke4 {[%emt 0:01:18]} Kd6 {[%emt 0:01:01]} 29. b3 {[%emt 0:05:52]} a6 {[%emt 0:01:43]} 30. h4 {[%emt 0:00:46]} Nc5+ {[%emt 0:01:08]} 31. Kf5 {[%emt 0:02:12]} Nd3 {[%emt 0:02:02]} 32. Ne4+ {[%emt 0:01:59]} Ke7 {[%emt 0:00:53]} 33. Nc3 {[%emt 0:01:44]} Kd6 {[%emt 0:01:11]} 34. g4 Nb4 {[%emt 0:01:43]} 35. g5 {[%emt 0:01:44]} Nc6 {[%emt 0:00:17]} 36. Ne4+ {[%emt 0:01:52]} Ke7 {[%emt 0:00:50]} 37. Nc5 {[%emt 0:02:00]} g6+ {[%emt 0:00:36]} 38. Ke4 {[%emt 0:00:45]} Nd8 {[%emt 0:00:47]} 39. Kd5 {[%emt 0:01:32]} a5 {[%emt 0:01:01]} 40. a3 {[%emt 0:01:12]} 1-0

[Event "AUT-ch 2018"]
[Site "Vienna"]
[Date "2018.07.23"]
[Round "3"]
[White "Polterauer, Chiara"]
[Black "Konecny, Sophie"]
[Result "1-0"]
[ECO "B00"]
[WhiteElo "2169"]
[BlackElo "1889"]
[Annotator "NA"]
[PlyCount "43"]
[EventDate "2018.07.22"]
[EventType "swiss"]
[EventCountry "AUT"]
[SourceTitle "playchess.com"]
[Source "ChessBase"]
[SourceQuality "1"]
[TimeControl "40/5400+30:1800+30"]

1. e4 {[%emt 0:00:00]} b6 {[%emt 0:00:06]} 2. d4 {[%emt 0:02:13]} Bb7 {[%emt 0:00:05]} 3. Bd3 {[%emt 0:00:37]} e6 {[%emt 0:00:48]} 4. Nf3 {[%emt 0:01:59]} d5 {[%emt 0:03:17]} 5. exd5 {[%emt 0:06:32]} exd5 {[%emt 0:01:07]} 6. O-O {[%emt 0:01:00]} Be7 {[%emt 0:01:40]} 7. Re1 {[%emt 0:02:02]} Nf6 {[%emt 0:01:06]} 8. Qe2 {[%emt 0:00:32]} Ne4 {[%emt 0:03:45]} 9. c4 {[%emt 0:01:48]} Bb4 {[%emt 0:10:29]} 10. Bd2 {[%emt 0:04:34]} Bxd2 {[%emt 0:01:20]} 11. Nbxd2 {[%emt 0:00:29]} O-O {[%emt 0:03:05]} 12. Nxe4 {[%emt 0:00:29]} dxe4 {[%emt 0:00:41]} 13. Bxe4 {[%emt 0:00:08]} c6 {[%emt 0:02:58]} 14. Rad1 {[%emt 0:03:43]} Nd7 {[%emt 0:01:30]} 15. Ne5 {[%emt 0:01:41]} Re8 {[%emt 0:01:57]} 16. Bxh7+ {[%emt 0:05:35]} Kf8 {[%emt 0:03:57]} 17. Qf3 {[%emt 0:01:54]} Nxe5 {[%emt 0:02:39]} 18. dxe5 {[%emt 0:00:47]} Qc7 {[%emt 0:00:32]} 19. e6 {[%emt 0:02:22]} c5 {[%emt 0:01:01]} 20. Qf5 {[%emt 0:08:38]} Re7 {[%emt 0:01:52]} 21. Bg6 {[%emt 0:02:04]} Qc6 {[%emt 0:01:55]} 22. f3 {[%emt 0:00:18]} 1-0

[Event "AUT-ch 2018"]
[Site "Vienna"]
[Date "2018.07.23"]
[Round "3"]
[White "Frank, Emanuel"]
[Black "Neumeier, Klaus"]
[Result "1-0"]
[ECO "A62"]
[WhiteElo "2161"]
[BlackElo "2284"]
[Annotator "NA"]
[PlyCount "59"]
[EventDate "2018.07.22"]
[EventType "swiss"]
[EventCountry "AUT"]
[SourceTitle "playchess.com"]
[Source "ChessBase"]
[SourceQuality "1"]
[TimeControl "40/5400+30:1800+30"]

1. d4 {[%emt 0:00:00]} Nf6 {[%emt 0:00:08]} 2. c4 {[%emt 0:00:00]} e6 {[%emt 0:00:30]} 3. g3 {[%emt 0:00:00]} c5 {[%emt 0:00:15]} 4. d5 {[%emt 0:00:00]} exd5 {[%emt 0:00:11]} 5. cxd5 {[%emt 0:00:00]} d6 {[%emt 0:00:25]} 6. Nc3 {[%emt 0:00:02]} g6 {[%emt 0:00:19]} 7. Bg2 {[%emt 0:00:04]} Bg7 {[%emt 0:00:10]} 8. Nf3 {[%emt 0:00:04]} O-O {[%emt 0:00:18]} 9. O-O {[%emt 0:00:03]} Re8 {[%emt 0:00:26]} 10. Bf4 {[%emt 0:00:10]} Ne4 {[%emt 0:02:40]} 11. Nxe4 {[%emt 0:00:11]} Rxe4 {[%emt 0:00:08]} 12. Nd2 {[%emt 0:00:04]} Rxf4 {[%emt 0:00:33]} 13. gxf4 {[%emt 0:00:02]} Bxb2 {[%emt 0:00:08]} 14. Rb1 {[%emt 0:00:05]} Bg7 {[%emt 0:00:04]} 15. e4 {[%emt 0:00:04]} Nd7 {[%emt 0:00:12]} 16. Re1 {[%emt 0:00:34]} Bh6 {[%emt 0:03:06]} 17. e5 {[%emt 0:02:31]} Bxf4 {[%emt 0:00:52]} 18. e6 {[%emt 0:00:04]} Ne5 {[%emt 0:03:03]} 19. Re4 {[%emt 0:01:14]} Qf6 {[%emt 0:09:27]} 20. Qa4 {[%emt 0:05:41]} Bxd2 {[%emt 0:04:41]} 21. Qe8+ {[%emt 0:00:41]} Kg7 {[%emt 0:00:06]} 22. e7 {[%emt 0:00:08]} Bh3 {[%emt 0:10:49]} 23. Qxa8 {[%emt 0:07:39]} Nf3+ {[%emt 0:18:41]} 24. Bxf3 {[%emt 0:15:10]} Qxf3 {[%emt 0:00:11]} 25. Qf8+ {[%emt 0:00:19]} Kf6 {[%emt 0:00:06]} 26. Qxf7+ {[%emt 0:00:43]} Kxf7 {[%emt 0:00:46]} 27. e8=Q+ {[%emt 0:00:06]} Kg7 {[%emt 0:00:14]} 28. Rxb7+ {[%emt 0:00:29]} Kh6 {[%emt 0:00:50]} 29. Rh4+ {[%emt 0:00:10]} Kg5 {[%emt 0:00:09]} 30. Qe7+ {[%emt 0:00:36]} 1-0

[Event "AUT-ch 2018"]
[Site "Vienna"]
[Date "2018.07.23"]
[Round "3"]
[White "Miazhynski, Yuri"]
[Black "Brueck, Michael"]
[Result "1-0"]
[ECO "A05"]
[WhiteElo "2147"]
[BlackElo "2000"]
[Annotator "NA"]
[PlyCount "63"]
[EventDate "2018.07.22"]
[EventType "swiss"]
[EventCountry "AUT"]
[SourceTitle "playchess.com"]
[Source "ChessBase"]
[SourceQuality "1"]
[TimeControl "40/5400+30:1800+30"]

1. Nf3 {[%emt 0:00:00]} Nf6 {[%emt 0:00:04]} 2. g3 {[%emt 0:00:05]} b6 {[%emt 0:01:58]} 3. Bg2 {[%emt 0:01:48]} Bb7 {[%emt 0:00:01]} 4. O-O {[%emt 0:00:47]} c5 {[%emt 0:01:01]} 5. c4 {[%emt 0:03:50]} e6 {[%emt 0:00:07]} 6. b3 {[%emt 0:03:36]} Qc7 {[%emt 0:02:45] A30: Symmetrical English: Double Fianchetto and Hedgehog} (6... Be7 7. Bb2 O-O 8. Nc3 d6 9. d4 cxd4 10. Qxd4 a6 11. e4 Nbd7 12. h3 Qc7 13. Rfe1 Rfe8 14. Qe3 Bf8 15. Nd4 g6 16. Rad1 Rad8 17. Ba1 Qb8 18. Qd2 Bg7 19. g4 Nc5 {0-1 (53) Karjakin,S (2760)-Ivanchuk,V (2729) Medias 2017}) 7. Bb2 {[%emt 0:04:28]} Be7 {[%emt 0:06:05]} 8. d3 {[%emt 0:04:26]} Nc6 {[%emt 0:00:16]} 9. Nc3 {[%emt 0:09:45]} Rd8 $146 {[%emt 0:00:02]} ({Predecessor:} 9... a6 10. e4 d6 11. a3 O-O {0-1 (56) Busch,G (1137)-Schellen,S (1654) Frankfurt 2010}) 10. Rc1 {[%emt 0:01:13]} d5 {[%emt 0:01:40]} 11. cxd5 {[%emt 0:00:57]} exd5 {[%emt 0:05:05]} 12. d4 {[%emt 0:00:45]} cxd4 {[%emt 0:12:24]} 13. Nb5 {[%emt 0:07:30]} Qd7 {[%emt 0:01:48]} 14. Nbxd4 {[%emt 0:01:45]} Nxd4 {[%emt 0:00:19]} 15. Nxd4 {[%emt 0:06:28]} O-O {[%emt 0:00:20]} 16. Qd3 {[%emt 0:03:52]} Rfe8 {[%emt 0:08:00]} 17. Nf5 {[%emt 0:06:53]} Bc5 {[%emt 0:19:14]} 18. Bxf6 {[%emt 0:10:19]} gxf6 {[%emt 0:00:01]} 19. Qf3 {[%emt 0:09:14]} Kh8 {[%emt 0:06:56]} 20. Nh6 {[%emt 0:00:47]} Kg7 {[%emt 0:10:59]} 21. Qh5 {[%emt 0:04:33]} Re5 {[%emt 0:01:28]} 22. Qh4 {[%emt 0:00:13]} Bc8 {[%emt 0:01:11]} 23. b4 {[%emt 0:03:38]} Be7 {[%emt 0:01:16]} 24. g4 {[%emt 0:08:19]} f5 {[%emt 0:12:38]} 25. Qh5 {[%emt 0:00:44]} Bxb4 {[%emt 0:01:54]} 26. Nxf5+ $18 {[%emt 0:01:04]} (26. Qg5+ {setzt Matt} Kf8 27. Qg8+ Ke7 28. Qxf7+ Kd6 29. Qf6+ Qe6 30. Nf7+ Kd7 31. Qxd8#) 26... Rxf5 {[%emt 0:01:13]} 27. gxf5 {[%emt 0:00:23]} Qxf5 {[%emt 0:00:20]} 28. Qh4 {[%emt 0:02:05]} Rd6 {[%emt 0:00:58]} 29. Qxb4 {[%emt 0:00:50]} Rg6 {[%emt 0:00:09]} 30. Rc3 {[%emt 0:00:49]} Ba6 {[%emt 0:01:54]} 31. Rg3 {[%emt 0:00:42]} Bxe2 {[%emt 0:00:04]} 32. Qb2+ {[%emt 0:00:10]} 1-0

[Event "AUT-ch 2018"]
[Site "Vienna"]
[Date "2018.07.23"]
[Round "3"]
[White "Atzl, Florian"]
[Black "Gelbenegger, Patrick"]
[Result "1/2-1/2"]
[ECO "C54"]
[WhiteElo "2117"]
[BlackElo "2260"]
[Annotator "NA"]
[PlyCount "62"]
[EventDate "2018.07.22"]
[EventType "swiss"]
[EventCountry "AUT"]
[SourceTitle "playchess.com"]
[Source "ChessBase"]
[SourceQuality "1"]
[TimeControl "40/5400+30:1800+30"]

1. e4 {[%emt 0:00:00]} e5 {[%emt 0:00:04]} 2. Nf3 {[%emt 0:00:00]} Nc6 {[%emt 0:00:04]} 3. Bc4 {[%emt 0:00:00]} Bc5 {[%emt 0:00:03]} 4. c3 {[%emt 0:00:01]} Nf6 {[%emt 0:00:04]} 5. d3 {[%emt 0:00:06]} d6 {[%emt 0:00:13]} 6. h3 {[%emt 0:00:30]} h6 {[%emt 0:00:23]} 7. Bb3 {[%emt 0:00:54]} O-O {[%emt 0:00:09]} 8. O-O {[%emt 0:00:12]} Be6 {[%emt 0:01:27]} 9. Qe2 {[%emt 0:01:30]} Bxb3 {[%emt 0:02:09]} 10. axb3 {[%emt 0:00:38]} Qe7 {[%emt 0:01:00]} 11. b4 {[%emt 0:01:12]} Bb6 {[%emt 0:00:17]} 12. Be3 {[%emt 0:01:51]} Bxe3 {[%emt 0:01:09]} 13. Qxe3 {[%emt 0:02:48]} a6 {[%emt 0:02:53]} 14. Nbd2 {[%emt 0:01:43]} d5 {[%emt 0:00:17]} 15. Rfd1 {[%emt 0:00:57]} dxe4 {[%emt 0:00:12]} 16. dxe4 {[%emt 0:00:09]} Rad8 {[%emt 0:00:57]} 17. Nf1 {[%emt 0:00:44]} Rxd1 {[%emt 0:01:13]} 18. Rxd1 {[%emt 0:00:42]} Rd8 {[%emt 0:01:21]} 19. Rxd8+ {[%emt 0:04:26]} Qxd8 {[%emt 0:00:29]} 20. Qd2 {[%emt 0:00:13]} Qxd2 {[%emt 0:01:03]} 21. N1xd2 {[%emt 0:00:23]} Nd7 {[%emt 0:00:16]} 22. Kf1 {[%emt 0:00:20]} f6 {[%emt 0:00:24]} 23. Ke2 {[%emt 0:00:15]} Kf7 {[%emt 0:00:09]} 24. Nc4 {[%emt 0:01:50]} Ke6 {[%emt 0:00:47]} 25. Ne3 {[%emt 0:01:07]} Ne7 {[%emt 0:00:47]} 26. Nh4 {[%emt 0:01:09]} g6 {[%emt 0:00:58]} 27. g4 {[%emt 0:00:51]} Nf8 {[%emt 0:00:34]} 28. f3 {[%emt 0:01:31]} Kd6 {[%emt 0:01:29]} 29. Nc4+ {[%emt 0:01:23]} Kd7 {[%emt 0:00:21]} 30. Ke3 {[%emt 0:01:30]} Ne6 {[%emt 0:00:13]} 31. Ng2 {[%emt 0:00:09]} b6 {[%emt 0:00:45] Kd4} 1/2-1/2

[Event "AUT-ch 2018"]
[Site "Vienna"]
[Date "2018.07.23"]
[Round "3"]
[White "Wagner, Leopold Franziskus"]
[Black "Opietnik, Christoph"]
[Result "1-0"]
[ECO "A06"]
[WhiteElo "2108"]
[BlackElo "1983"]
[Annotator "NA"]
[PlyCount "61"]
[EventDate "2018.07.22"]
[EventType "swiss"]
[EventCountry "AUT"]
[SourceTitle "playchess.com"]
[Source "ChessBase"]
[SourceQuality "1"]
[TimeControl "40/5400+30:1800+30"]

1. Nf3 {[%emt 0:00:00]} d5 2. g3 {[%emt 0:00:00]} Nf6 {[%emt 0:00:42]} 3. Bg2 {[%emt 0:00:00]} e6 {[%emt 0:01:55]} 4. O-O c5 {[%emt 0:00:36]} 5. e3 {[%emt 0:00:47]} Nc6 {[%emt 0:01:36]} 6. d4 {[%emt 0:00:11]} b6 {[%emt 0:03:11]} 7. Ne5 {[%emt 0:00:35]} Bb7 {[%emt 0:01:29]} 8. c3 {[%emt 0:00:29]} Bd6 {[%emt 0:02:53]} 9. f4 Ne4 {[%emt 0:07:52]} 10. Bxe4 {[%emt 0:02:20]} dxe4 {[%emt 0:00:07]} 11. Nd2 {[%emt 0:00:13]} Ne7 {[%emt 0:06:36]} 12. Qa4+ {[%emt 0:02:03]} Kf8 {[%emt 0:02:12]} 13. Ndc4 {[%emt 0:00:50]} cxd4 {[%emt 0:05:29]} 14. cxd4 {[%emt 0:02:09]} g6 {[%emt 0:01:12]} 15. Bd2 {[%emt 0:01:43]} Nd5 {[%emt 0:03:28]} 16. Nd7+ {[%emt 0:01:35]} Ke7 {[%emt 0:02:32]} 17. Nxd6 {[%emt 0:02:04]} Kxd6 {[%emt 0:00:04]} 18. Bb4+ {[%emt 0:04:15]} Nxb4 {[%emt 0:01:09]} 19. Ne5 {[%emt 0:01:31]} Ke7 {[%emt 0:02:27]} 20. Qxb4+ {[%emt 0:00:47]} Kf6 {[%emt 0:00:50]} 21. g4 {[%emt 0:00:26]} Kg7 {[%emt 0:01:04]} 22. f5 {[%emt 0:01:36]} Rf8 {[%emt 0:07:49]} 23. f6+ {[%emt 0:00:38]} Kg8 {[%emt 0:01:49]} 24. Qe1 {[%emt 0:03:45]} Qd6 {[%emt 0:00:24]} 25. Qh4 {[%emt 0:00:49]} Rfd8 {[%emt 0:04:47]} 26. Rac1 {[%emt 0:02:01]} Rac8 {[%emt 0:03:16]} 27. Nxf7 {[%emt 0:00:43]} Rxc1 {[%emt 0:06:37]} 28. Nxd6 {[%emt 0:00:12]} Rxf1+ {[%emt 0:00:07]} 29. Kxf1 {[%emt 0:00:04]} Rxd6 {[%emt 0:00:07]} 30. f7+ {[%emt 0:00:13]} Kg7 {[%emt 0:02:06]} 31. Qe7 {[%emt 0:00:10]} 1-0

[Event "AUT-ch 2018"]
[Site "Vienna"]
[Date "2018.07.23"]
[Round "3"]
[White "Schloffer, Jasmin-Denise"]
[Black "Khalakhan, Jurij"]
[Result "1/2-1/2"]
[ECO "A89"]
[WhiteElo "2102"]
[BlackElo "2215"]
[Annotator "NA"]
[PlyCount "79"]
[EventDate "2018.07.22"]
[EventType "swiss"]
[EventCountry "AUT"]
[SourceTitle "playchess.com"]
[Source "ChessBase"]
[SourceQuality "1"]
[TimeControl "40/5400+30:1800+30"]

1. d4 {[%emt 0:00:00]} f5 {[%emt 0:00:05]} 2. Nf3 {[%emt 0:00:00]} Nf6 {[%emt 0:00:05]} 3. g3 {[%emt 0:00:00]} d6 {[%emt 0:00:19]} 4. Bg2 {[%emt 0:00:00]} g6 {[%emt 0:00:01]} 5. O-O {[%emt 0:00:06]} Bg7 {[%emt 0:00:05]} 6. c4 {[%emt 0:00:06]} O-O {[%emt 0:00:04]} 7. Nc3 {[%emt 0:00:10]} Nc6 {[%emt 0:00:14]} 8. d5 {[%emt 0:06:07]} Ne5 {[%emt 0:00:39]} 9. Qb3 {[%emt 0:00:55]} h6 {[%emt 0:08:45] A89: Dutch Defence: Leningrad System: 5 Nf3 0-0 6 0-0 d6 7 Nc3 Nc6} (9... Ned7 10. Qc2 a5 11. Bg5 Nc5 12. Rad1 Bd7 13. Nd4 Qe8 14. Rfe1 Ng4 15. h3 h6 16. Bc1 Nf6 17. e4 fxe4 18. Nxe4 Nfxe4 19. Bxe4 Bxh3 20. Bxg6 {1-0 (46) Illescas Cordoba,M (2618)-Rapport,R (2704) Tromsoe 2014 CBM 162 [Meulders,R]}) 10. Nd4 {[%emt 0:02:29]} g5 {[%emt 0:10:13]} 11. f4 {[%emt 0:11:24]} gxf4 {[%emt 0:01:31]} 12. Bxf4 {[%emt 0:00:18]} Ng6 $146 {[%emt 0:02:00]} ({Predecessor:} 12... Nh5 13. e3 Ng4 14. Nce2 Bd7 15. c5 dxc5 16. d6+ Kh8 17. dxc7 {1-0 (52) Campos Moreno,J (2491)-Fernando,D (2257) Orense 2000}) 13. e3 {[%emt 0:01:18]} Kh8 {[%emt 0:08:34]} 14. Nce2 {[%emt 0:01:54]} Ne4 {[%emt 0:19:46]} 15. Qc2 {[%emt 0:03:21]} c5 {[%emt 0:01:12]} 16. Nb5 {[%emt 0:01:25]} a6 {[%emt 0:01:51]} 17. Nbc3 {[%emt 0:00:27]} Nxc3 {[%emt 0:00:18]} 18. Nxc3 {[%emt 0:00:09]} Rb8 {[%emt 0:01:26]} 19. a4 {[%emt 0:06:11]} Bd7 {[%emt 0:06:48]} 20. Rfb1 {[%emt 0:14:36]} b5 {[%emt 0:04:54]} 21. axb5 {[%emt 0:07:04]} axb5 {[%emt 0:00:23]} 22. Nxb5 {[%emt 0:00:34]} Bxb5 {[%emt 0:00:19]} 23. cxb5 {[%emt 0:00:04]} Rxb5 {[%emt 0:01:28]} 24. Bf1 {[%emt 0:00:07]} Rb4 {[%emt 0:01:31]} 25. Ra4 {[%emt 0:03:02]} Qb6 {[%emt 0:03:57]} 26. Rxb4 {[%emt 0:00:19]} Qxb4 {[%emt 0:00:27]} 27. Bd3 {[%emt 0:03:59]} Nxf4 {[%emt 0:07:27]} 28. gxf4 {[%emt 0:00:17]} Qb7 {[%emt 0:10:54]} 29. Bc4 {[%emt 0:03:18]} Qd7 {[%emt 0:09:07]} 30. Kh1 {[%emt 0:01:19]} Qb7 {[%emt 0:00:24]} 31. b3 {[%emt 0:04:05]} e5 {[%emt 0:00:11]} 32. fxe5 {[%emt 0:01:46]} Bxe5 {[%emt 0:01:00]} 33. Rg1 {[%emt 0:01:30]} Qe7 {[%emt 0:00:27]} 34. Qg2 {[%emt 0:03:21]} Qh4 {[%emt 0:00:28]} 35. Bd3 {[%emt 0:01:32]} Qf6 {[%emt 0:00:35]} 36. Qg6 {[%emt 0:02:10]} Qxg6 {[%emt 0:00:15]} 37. Rxg6 {[%emt 0:00:07]} Rf6 {[%emt 0:00:02]} 38. Rxf6 $11 {[%emt 0:05:02]} Bxf6 {[%emt 0:00:02]} 39. Bxf5 {[%emt 0:00:09]} Be5 {[%emt 0:00:07]} 40. Bd3 {[%emt 0:00:22]} 1/2-1/2

[Event "AUT-ch 2018"]
[Site "Vienna"]
[Date "2018.07.23"]
[Round "3"]
[White "Ehs, Dominik"]
[Black "Kersten, Julian"]
[Result "1/2-1/2"]
[ECO "C07"]
[WhiteElo "2097"]
[BlackElo "1979"]
[Annotator "NA RC"]
[PlyCount "81"]
[EventDate "2018.07.22"]
[EventType "swiss"]
[EventCountry "AUT"]
[SourceTitle "playchess.com"]
[Source "ChessBase"]
[SourceQuality "1"]
[TimeControl "40/5400+30:1800+30"]

1. e4 {[%emt 0:00:00]} e6 {[%emt 0:00:11]} 2. d4 {[%emt 0:00:00]} d5 {[%emt 0:00:06]} 3. Nd2 {[%emt 0:00:00]} c5 {[%emt 0:00:06]} 4. exd5 {[%emt 0:00:27]} Qxd5 {[%emt 0:00:08]} 5. Ngf3 {[%emt 0:00:30]} cxd4 {[%emt 0:00:14]} 6. Bc4 {[%emt 0:00:11]} Qd7 {[%emt 0:00:05] C07: French Tarrasch: 3...c5, 4 Ngf3 and 4 exd5 Qxd5} (6... Qd8 7. O-O Nc6 8. Nb3 a6 9. Nbxd4 Nxd4 10. Nxd4 Qc7 11. Bd3 Nf6 12. Re1 Bd6 13. h3 O-O 14. Bg5 Be5 15. c3 h6 16. Nf3 Bxc3 {1-0 (51) Mamedov,R (2709)-Le,Q (2737) Huaian 2017}) 7. O-O {[%emt 0:00:45]} Nc6 {[%emt 0:01:48]} 8. Nb3 {[%emt 0:00:54]} a6 {[%emt 0:00:07]} 9. Nbxd4 {[%emt 0:01:22]} Nxd4 {[%emt 0:00:09]} 10. Qxd4 {[%emt 0:06:53]} Qxd4 {[%emt 0:00:42]} 11. Nxd4 {[%emt 0:00:10]} Bd7 {[%emt 0:01:48]} 12. c3 {[%emt 0:08:11]} Nf6 {[%emt 0:02:18]} 13. Re1 {[%emt 0:09:12]} Be7 $146 {[%emt 0:04:28]} ({Predecessor:} 13... Rc8 14. Be2 Bc5 15. Nb3 Bb6 16. Bf3 Bc6 17. Be3 Bxe3 18. Rxe3 Bxf3 19. Rxf3 Ke7 20. Rd1 {0-1 (50) Forchert,M (2282)-Kabatianski,A (2307) Germany 2017}) 14. Bg5 {[%emt 0:05:30]} O-O {[%emt 0:02:46]} 15. Rad1 {[%emt 0:02:39]} Rfd8 {[%emt 0:02:58]} 16. Bb3 {[%emt 0:13:26]} Rac8 {[%emt 0:00:58]} 17. h3 {[%emt 0:07:07]} Kf8 {[%emt 0:08:23]} 18. f4 {[%emt 0:10:06]} Ng8 {[%emt 0:03:34]} 19. Bxe7+ {[%emt 0:07:14]} Nxe7 {[%emt 0:01:34]} 20. g4 {[%emt 0:00:05]} Nc6 {[%emt 0:04:11]} 21. Nf3 {[%emt 0:02:52]} Na5 {[%emt 0:02:49]} 22. Ne5 {[%emt 0:02:23]} Be8 {[%emt 0:07:53]} 23. Kf2 {[%emt 0:03:00]} Nc6 {[%emt 0:06:43]} 24. Nc4 {[%emt 0:03:17]} Rxd1 {[%emt 0:03:52]} 25. Rxd1 {[%emt 0:00:05]} Rd8 {[%emt 0:04:19]} 26. Nd6 {[%emt 0:04:17]} Na5 {[%emt 0:00:48]} 27. Ne4 {[%emt 0:02:14]} Rxd1 {[%emt 0:01:17]} 28. Bxd1 {[%emt 0:00:05]} Nc4 {[%emt 0:03:21]} 29. b3 {[%emt 0:00:56]} Nb6 {[%emt 0:07:01]} 30. c4 {[%emt 0:00:16]} Bc6 {[%emt 0:00:39]} 31. Bf3 {[%emt 0:04:28]} Nc8 {[%emt 0:01:13]} 32. Nc5 {[%emt 0:01:52]} Bxf3 {[%emt 0:00:19]} 33. Kxf3 {[%emt 0:00:04]} Nd6 {[%emt 0:00:23]} 34. Ke3 {[%emt 0:02:15]} Ke7 {[%emt 0:00:23]} 35. Kd4 {[%emt 0:00:23]} Kd8 {[%emt 0:04:34]} 36. a3 {[%emt 0:01:46]} Kc7 {[%emt 0:00:42]} 37. b4 {[%emt 0:00:17]} Nc8 {[%emt 0:12:54]} 38. Nd3 {[%emt 0:01:09]} Ne7 {[%emt 0:03:00]} 39. Ke4 {[%emt 0:01:11]} Nc6 $14 {[%emt 0:01:54]} 40. h4 {[%emt 0:01:47]} Kd6 {[%emt 0:33:35]} 41. Nc5 {[%emt 0:13:54] Ke5+} 1/2-1/2

[Event "AUT-ch 2018"]
[Site "Vienna"]
[Date "2018.07.23"]
[Round "3"]
[White "Kuntner, Reinhard"]
[Black "Jakits, Leopold"]
[Result "0-1"]
[ECO "A20"]
[WhiteElo "2002"]
[BlackElo "2161"]
[Annotator "NA"]
[PlyCount "58"]
[EventDate "2018.07.22"]
[EventType "swiss"]
[EventCountry "AUT"]
[SourceTitle "playchess.com"]
[Source "ChessBase"]
[SourceQuality "1"]
[TimeControl "40/5400+30:1800+30"]

1. c4 {[%emt 0:00:00]} e5 {[%emt 0:01:17]} 2. g3 {[%emt 0:00:00]} Nf6 {[%emt 0:00:04]} 3. Bg2 {[%emt 0:00:18]} d5 {[%emt 0:00:05]} 4. cxd5 {[%emt 0:00:11]} Nxd5 {[%emt 0:00:03]} 5. Nc3 {[%emt 0:00:16]} Nb6 {[%emt 0:00:10]} 6. Nf3 {[%emt 0:01:02]} Nc6 {[%emt 0:00:05]} 7. a3 {[%emt 0:03:03]} Be7 {[%emt 0:01:48]} 8. b4 {[%emt 0:01:47]} Be6 {[%emt 0:00:41]} 9. O-O {[%emt 0:00:27]} f6 {[%emt 0:00:59]} 10. d3 {[%emt 0:00:17]} O-O {[%emt 0:00:25]} 11. Be3 {[%emt 0:04:53]} Nd5 {[%emt 0:15:14]} 12. Nxd5 {[%emt 0:06:44]} Bxd5 {[%emt 0:01:02]} 13. Bc5 {[%emt 0:09:36]} Bxc5 {[%emt 0:10:22]} 14. bxc5 {[%emt 0:00:02]} Nd4 {[%emt 0:00:23]} 15. Nxd4 {[%emt 0:05:08]} exd4 {[%emt 0:01:19]} 16. Bxd5+ {[%emt 0:13:54]} Qxd5 {[%emt 0:00:03]} 17. Qc2 {[%emt 0:09:44]} Rae8 {[%emt 0:00:40]} 18. Qa2 {[%emt 0:03:41]} Re5 {[%emt 0:03:17]} 19. Qxd5+ {[%emt 0:01:47]} Rxd5 {[%emt 0:00:02]} 20. Rfc1 {[%emt 0:00:18]} Kf7 {[%emt 0:37:18]} 21. Rab1 {[%emt 0:01:42]} Rb8 {[%emt 0:00:28]} 22. a4 {[%emt 0:07:08]} Ke6 {[%emt 0:05:27]} 23. a5 {[%emt 0:04:55]} Kd7 {[%emt 0:02:08]} 24. Rc4 {[%emt 0:13:04]} c6 {[%emt 0:02:47]} 25. a6 {[%emt 0:05:53]} Kc7 {[%emt 0:00:28]} 26. Rcb4 {[%emt 0:01:29]} b5 {[%emt 0:01:15]} 27. cxb6+ {[%emt 0:00:49]} Rxb6 {[%emt 0:00:15]} 28. Rxb6 {[%emt 0:00:20]} axb6 {[%emt 0:00:05]} 29. a7 {[%emt 0:00:09]} Ra5 {[%emt 0:00:31]} 0-1